fUSD/lending_fUSD_20250607
["ID","MTS","AMOUNT","RATE_DAILY","PERIOD"]
[364850546,1749275439530,-151.479148,0.000271,7]
[364850547,1749275439541,-151.0,0.000271,7]
[364850548,1749275439550,-153.0,0.00027123,2]
[364850549,1749275439561,-153.0,0.00027123,2]
[364850550,1749275439571,-153.0,0.00027123,2]
[364850551,1749275439582,-153.0,0.00027123,2]
[364850552,1749275439592,-153.0,0.00027123,2]
[364850553,1749275439602,-153.0,0.00027123,2]
[364850554,1749275439613,-153.0,0.00027123,2]
[364850555,1749275439623,-153.0,0.00027123,2]
[364850556,1749275439633,-153.0,0.00027123,2]
[364850557,1749275439643,-153.0,0.00027123,2]
[364850558,1749275439653,-153.0,0.00027123,2]
[364850559,1749275439664,-153.0,0.00027123,2]
[364850560,1749275439674,-153.0,0.00027123,2]
[364850561,1749275439684,-222.451699,0.00027133,7]
[364850562,1749275439694,-222.451699,0.00027133,7]
[364850563,1749275439704,-158.46912682,0.00027151,30]
[364850564,1749275439714,-250.0,0.00027151,2]
[364850565,1749275439725,-1000.0,0.000272,2]
[364850566,1749275439735,-1000.0,0.000272,2]
[364850567,1749275439746,-1000.0,0.000272,2]
[364850568,1749275439756,-1000.0,0.000272,2]
[364850569,1749275439766,-266.69515749,0.00027205,30]
[364850571,1749275440064,-13029.1438503,0.0002723,2]
[364850572,1749275440081,-151.0,0.00027237,7]
[364850573,1749275440093,-289.323726,0.00027237,7]
[364850574,1749275440107,-289.323726,0.00027237,7]
[364850575,1749275440119,-151.0,0.00027237,7]
[364850576,1749275440132,-150.0,0.00027237,2]
[364850577,1749275440146,-200.0,0.0002725,2]
[364850578,1749275440156,-13029.1438503,0.00027252,2]
[364850579,1749275440166,-28208.0751231,0.00027252,2]
[364850580,1749275440176,-150.0,0.0002726,2]
[364850581,1749275440186,-91204.0069521,0.00027263,2]
[364850582,1749275440196,-98728.2629307,0.00027263,2]
[364850583,1749275440206,-152.3,0.00027263,2]
[364850584,1749275440216,-150.0,0.00027264,2]
[364850585,1749275440226,-152.15340128,0.00027264,2]
[364850586,1749275440236,-13029.1438503,0.00027267,2]
[364850587,1749275440246,-151.28222684,0.00027268,2]
[364850588,1749275440256,-215.0738,0.00027269,2]
[364850589,1749275440266,-156.587,0.00027269,2]
[364850590,1749275440281,-150.0,0.00027271,2]
[364850591,1749275440291,-2000.0,0.00027272,2]
[364850592,1749275440302,-2000.0,0.00027272,2]
[364850593,1749275440313,-187627.8369,0.00027273,2]
[364850594,1749275440323,-800.0,0.00027277,2]
[364850595,1749275440334,-14104.0375615,0.00027279,2]
[364850596,1749275440345,-150.0,0.00027287,2]
[364850597,1749275440355,-1000.0,0.00027288,2]
[364850598,1749275440366,-586.40670695,0.00027289,2]
[364850599,1749275440377,-160.66128487,0.00027289,2]
[364850600,1749275440387,-1000.0,0.0002729,2]
[364850601,1749275440397,-150.0,0.00027291,2]
[364850602,1749275440406,-150.0,0.00027294,2]
[364850603,1749275440417,-1252.39902294,0.00027296,10]
[364850604,1749275440427,-1000.0,0.00027296,2]
[364850605,1749275440437,-5000.0,0.00027297,2]
[364850606,1749275440448,-151.0,0.000273,7]
[364850607,1749275440458,-171.351052,0.000273,7]
[364850608,1749275440468,-151.0,0.000273,7]
[364850609,1749275440478,-151.479148,0.000273,7]
[364850610,1749275440489,-151.479148,0.000273,7]
[364850611,1749275440500,-151.0,0.000273,7]
[364850612,1749275440510,-1491.0,0.000273,2]
[364850613,1749275440521,-150.0,0.00027301,2]
[364850614,1749275440531,-1383.702,0.00027303,16]
[364850615,1749275440542,-150.0,0.00027305,2]
[364850616,1749275440552,-150.0,0.0002731,2]
[364850617,1749275440562,-150.0,0.00027312,2]
[364850618,1749275440572,-14104.0375615,0.00027315,2]
[364850619,1749275440583,-266.69515749,0.00027315,30]
[364850620,1749275440593,-13029.1438503,0.0002732,2]
[364850621,1749275440603,-1000.0,0.00027321,2]
[364850622,1749275440613,-13029.1438503,0.00027324,2]
[364850623,1749275440624,-14104.0375615,0.00027324,2]
[364850624,1749275440634,-150.0,0.00027324,2]
[364850625,1749275440644,-921.68,0.00027325,2]
[364850626,1749275440654,-150.0,0.00027328,2]
[364850627,1749275440665,-150.0,0.00027332,2]
[364850628,1749275440675,-13029.1438503,0.00027339,2]
[364850629,1749275440685,-14104.0375615,0.00027339,2]
[364850630,1749275440695,-170.57,0.00027342,2]
[364850631,1749275440705,-222.451699,0.00027347,7]
[364850632,1749275440720,-222.451699,0.00027347,7]
[364850633,1749275440730,-1000.0,0.00027347,2]
[364850634,1749275440740,-12128.56731457,0.00027349,2]
[364850635,1749275440750,-13029.1438503,0.00027349,2]
[364850636,1749275440760,-14104.0375615,0.00027349,2]
[364850637,1749275440770,-150.0,0.0002735,2]
[364850638,1749275440780,-150.0,0.00027356,2]
[364850639,1749275440790,-311.73744498,0.00027357,2]
[364850640,1749275440800,-13029.1438503,0.00027358,2]
[364850641,1749275440809,-150.0,0.00027359,2]
[364850642,1749275440820,-944.0,0.00027359,2]
[364850643,1749275440829,-1164.0,0.00027359,2]
[364850644,1749275440842,-801.0,0.00027359,2]
[364850645,1749275440852,-636.0,0.00027359,2]
[364850646,1749275440862,-926.0,0.00027359,2]
[364850647,1749275440872,-1274.0,0.00027359,2]
[364850648,1749275440884,-557.0,0.00027359,2]
[364850649,1749275440894,-2000.0,0.00027359,2]
[364850650,1749275440905,-589.0,0.00027359,2]
[364850651,1749275440915,-1255.0,0.00027359,2]
[364850652,1749275440926,-852.0,0.00027359,2]
[364850653,1749275440936,-150.0,0.00027359,2]
[364850654,1749275440946,-883.0,0.00027359,2]
[364850655,1749275440958,-4082.0,0.00027359,2]
[364850656,1749275440968,-7018.0,0.00027359,2]
[364850657,1749275440979,-155.0,0.00027359,2]
[364850658,1749275440990,-243.83308748,0.0002736,2]
[364850659,1749275441000,-14104.0375615,0.00027362,2]
[364850660,1749275441012,-52116.5754012,0.00027367,2]
[364850661,1749275441022,-56416.1502461,0.00027367,2]
[364850662,1749275441032,-1000.0,0.00027372,2]
[364850663,1749275441044,-195.24348751,0.00027373,2]
[364850664,1749275441055,-505.26649559,0.00027373,2]
[364850665,1749275441067,-157.38247964,0.00027373,2]
[364850666,1749275441077,-526.05526299,0.00027373,2]
[364850667,1749275441088,-500.90964118,0.00027373,2]
[364850668,1749275441098,-500.0,0.00027373,2]
[364850669,1749275441109,-500.0,0.00027373,2]
[364850670,1749275441120,-501.50822778,0.00027373,2]
[364850671,1749275441132,-13029.1438503,0.00027377,2]
[364850672,1749275441148,-112832.300492,0.00027377,2]
[364850673,1749275441172,-152.3,0.00027377,2]
[364850674,1749275441185,-151.0,0.00027378,7]
[364850675,1749275441197,-171.351052,0.00027378,7]
[364850676,1749275441208,-151.0,0.00027378,7]
[364850677,1749275441222,-151.0,0.00027378,7]
[364850678,1749275441233,-289.323726,0.00027378,7]
[364850679,1749275441243,-289.323726,0.00027378,7]
[364850680,1749275441254,-289.323726,0.00027378,7]
[364850681,1749275441265,-289.323726,0.00027378,7]
[364850682,1749275441276,-151.479148,0.00027378,7]
[364850683,1749275441286,-151.479148,0.00027378,7]
[364850684,1749275441297,-151.0,0.00027378,7]
[364850685,1749275441308,-151.0,0.00027378,7]
[364850686,1749275441318,-151.0,0.00027378,7]
[364850687,1749275441329,-222.451699,0.00027378,7]
[364850688,1749275441340,-222.451699,0.00027378,7]
[364850689,1749275441351,-150.0,0.00027381,2]
[364850690,1749275441362,-146856.84436718,0.00027387,2]
[364850691,1749275441372,-42312.1126846,0.00027387,2]
[364850692,1749275441383,-150.0,0.00027389,2]
[364850693,1749275441394,-1000.0,0.00027397,3]
[364850694,1749275441405,-1000.0,0.00027397,3]
[364850695,1749275441416,-1000.0,0.00027397,3]
[364850696,1749275441427,-1000.0,0.00027397,3]
[364850697,1749275441438,-1000.0,0.00027397,3]
[364850698,1749275441448,-1026.0,0.00027397,3]
[364850699,1749275441459,-151.0,0.00027397,7]
[364850700,1749275441470,-151.0,0.00027397,7]
[364850701,1749275441481,-151.0,0.00027397,7]
[364850702,1749275441492,-171.351052,0.00027397,7]
[364850703,1749275441502,-171.351052,0.00027397,7]
[364850704,1749275441513,-171.351049,0.00027397,7]
[364850705,1749275441523,-763.800367,0.00027397,7]
[364850706,1749275441534,-763.800367,0.00027397,7]
[364850707,1749275441545,-763.800367,0.00027397,7]
[364850708,1749275441556,-763.800367,0.00027397,7]
[364850709,1749275441565,-763.800368,0.00027397,7]
[364850710,1749275441576,-151.0,0.00027397,7]
[364850711,1749275441586,-151.0,0.00027397,7]
[364850712,1749275441597,-151.0,0.00027397,7]
[364850713,1749275441607,-289.323726,0.00027397,7]
[364850714,1749275441618,-289.323726,0.00027397,7]
[364850715,1749275441628,-289.323726,0.00027397,7]
[364850716,1749275441638,-250.08935422,0.00027397,5]
[364850717,1749275441648,-289.323726,0.00027397,7]
[364850718,1749275441659,-289.323726,0.00027397,7]
[364850719,1749275441669,-289.323735,0.00027397,7]
[364850720,1749275441679,-151.479148,0.00027397,7]
[364850721,1749275441689,-151.479148,0.00027397,7]
[364850722,1749275441699,-151.479148,0.00027397,7]
[364850723,1749275441709,-151.479148,0.00027397,7]
[364850724,1749275441719,-151.479148,0.00027397,7]
[364850725,1749275441729,-480.0,0.00027397,5]
[364850726,1749275441740,-151.479146,0.00027397,7]
[364850727,1749275441750,-151.0,0.00027397,7]
[364850728,1749275441760,-151.0,0.00027397,7]
[364850729,1749275441771,-159.731916,0.00027397,7]
[364850730,1749275441780,-157.453017,0.00027397,7]
[364850731,1749275441790,-480.0,0.00027397,5]
[364850732,1749275441801,-185.91318012,0.00027397,5]
[364850733,1749275441811,-480.0,0.00027397,5]
[364850734,1749275441820,-480.0,0.00027397,5]
[364850735,1749275441830,-158.963046,0.00027397,5]
[364850736,1749275441840,-480.0,0.00027397,5]
[364850737,1749275441851,-510.32669736,0.00027397,5]
[364850738,1749275441860,-480.0,0.00027397,5]
[364850739,1749275441871,-500.72589636,0.00027397,5]
[364850740,1749275441880,-1712.784714,0.00027397,5]
[364850741,1749275441890,-2014.532933,0.00027397,5]
[364850742,1749275441901,-480.0,0.00027397,5]
[364850743,1749275441910,-480.0,0.00027397,5]
[364850744,1749275441920,-222.451699,0.00027397,7]
[364850745,1749275441930,-222.451699,0.00027397,7]
[364850746,1749275441940,-222.451699,0.00027397,7]
[364850747,1749275441950,-222.451699,0.00027397,7]
[364850748,1749275441960,-222.451699,0.00027397,7]
[364850749,1749275441970,-222.45169,0.00027397,7]
[364850750,1749275441979,-162.958386,0.00027397,5]
[364850751,1749275441989,-480.0,0.00027397,5]
[364850752,1749275442000,-491.83914908,0.00027397,5]
[364850753,1749275442010,-480.0,0.00027397,5]
[364850754,1749275442020,-480.0,0.00027397,5]
[364850755,1749275442031,-480.0,0.00027397,5]
[364850756,1749275442041,-480.0,0.00027397,5]
[364850757,1749275442050,-480.0,0.00027397,5]
[364850758,1749275442061,-480.0,0.00027397,5]
[364850759,1749275442070,-480.0,0.00027397,5]
[364850760,1749275442080,-480.0,0.00027397,5]
[364850761,1749275442090,-480.0,0.00027397,5]
[364850762,1749275442100,-480.0,0.00027397,5]
[364850763,1749275442109,-480.0,0.00027397,2]
[364850764,1749275442119,-480.0,0.00027397,5]
[364850765,1749275442128,-480.0,0.00027397,5]
[364850766,1749275442141,-480.0,0.00027397,5]
[364850767,1749275442151,-496.12803623,0.00027397,5]
[364850768,1749275442161,-491.63700926,0.00027397,5]
[364850769,1749275442171,-480.0,0.00027397,5]
[364850770,1749275442181,-495.52185997,0.00027397,5]
[364850771,1749275442191,-480.0,0.00027397,5]
[364850772,1749275442201,-480.0,0.00027397,5]
[364850773,1749275442211,-500.0,0.00027397,2]
[364850774,1749275442221,-500.0,0.00027397,2]
[364850775,1749275442231,-500.0,0.00027397,2]
[364850776,1749275442241,-500.0,0.00027397,2]
[364850777,1749275442251,-500.0,0.00027397,2]
[364850778,1749275442261,-500.0,0.00027397,2]
[364850779,1749275442271,-500.0,0.00027397,2]
[364850780,1749275442282,-500.0,0.00027397,2]
[364850781,1749275442292,-500.0,0.00027397,2]
[364850782,1749275442302,-500.0,0.00027397,2]
[364850783,1749275442312,-500.0,0.00027397,2]
[364850784,1749275442322,-500.0,0.00027397,2]
[364850785,1749275442332,-500.0,0.00027397,2]
[364850786,1749275442343,-500.0,0.00027397,2]
[364850787,1749275442353,-153.54,0.00027397,2]
[364850788,1749275442363,-480.0,0.00027397,5]
[364850789,1749275442373,-480.0,0.00027397,5]
[364850790,1749275442382,-491.23809881,0.00027397,5]
[364850791,1749275442393,-480.0,0.00027397,5]
[364850792,1749275442403,-480.0,0.00027397,5]
[364850793,1749275442412,-480.0,0.00027397,5]
[364850794,1749275442422,-501.27869741,0.00027397,5]
[364850795,1749275442432,-480.0,0.00027397,5]
[364850796,1749275442442,-480.0,0.00027397,5]
[364850797,1749275442452,-965.47,0.00027397,5]
[364850798,1749275442462,-480.0,0.00027397,5]
[364850799,1749275442473,-419.16639809,0.00027397,5]
[364850800,1749275442482,-480.0,0.00027397,5]
[364850801,1749275442493,-480.0,0.00027397,5]
[364850802,1749275442503,-480.0,0.00027397,5]
[364850803,1749275442513,-480.0,0.00027397,5]
[364850804,1749275442524,-480.0,0.00027397,5]
[364850805,1749275442534,-373.30903654,0.00027397,5]
[364850806,1749275442544,-480.0,0.00027397,5]
[364850807,1749275442555,-480.0,0.00027397,5]
[364850809,1749275442937,-480.0,0.00027397,5]
[364850811,1749275442948,-480.0,0.00027397,5]
[364850812,1749275442959,-483.6766769,0.00027397,5]
[364850813,1749275442969,-480.0,0.00027397,5]
[364850814,1749275442980,-480.0,0.00027397,5]
[364850815,1749275442990,-480.0,0.00027397,5]
[364850816,1749275443000,-480.0,0.00027397,5]
[364850817,1749275443010,-480.0,0.00027397,5]
[364850818,1749275443020,-480.0,0.00027397,5]
[364850819,1749275443030,-441.9268792,0.00027397,5]
[364850820,1749275443039,-431.98009251,0.00027397,5]
[364850821,1749275443049,-480.0,0.00027397,5]
[364850822,1749275443060,-480.0,0.00027397,5]
[364850823,1749275443072,-480.0,0.00027397,5]
[364850824,1749275443084,-480.0,0.00027397,5]
[364850825,1749275443095,-480.0,0.00027397,5]
[364850826,1749275443104,-480.0,0.00027397,5]
[364850827,1749275443114,-480.0,0.00027397,5]
[364850828,1749275443124,-779.14,0.00027397,5]
[364850829,1749275443134,-480.0,0.00027397,5]
[364850830,1749275443149,-480.0,0.00027397,5]
[364850831,1749275443159,-480.0,0.00027397,5]
[364850832,1749275443169,-552.87818433,0.00027397,5]
[364850833,1749275443180,-480.0,0.00027397,5]
[364850834,1749275443190,-480.0,0.00027397,5]
[364850835,1749275443200,-490.34155793,0.00027397,5]
[364850836,1749275443209,-362.06822644,0.00027397,5]
[364850837,1749275443221,-480.0,0.00027397,5]
[364850838,1749275443232,-480.0,0.00027397,5]
[364850839,1749275443243,-500.0,0.00027397,5]
[364850840,1749275443253,-493.70842636,0.00027397,5]
[364850841,1749275443262,-500.0,0.00027397,5]
[364850842,1749275443272,-500.0,0.00027397,5]
[364850843,1749275443284,-568.48762227,0.00027397,5]
[364850844,1749275443294,-480.0,0.00027397,5]
[364850845,1749275443306,-480.0,0.00027397,5]
[364850846,1749275443316,-480.0,0.00027397,5]
[364850847,1749275443327,-480.0,0.00027397,5]
[364850848,1749275443337,-482.43772779,0.00027397,5]
[364850849,1749275443348,-480.0,0.00027397,5]
[364850850,1749275443358,-480.0,0.00027397,5]
[364850851,1749275443368,-480.0,0.00027397,5]
[364850852,1749275443379,-426.84645408,0.00027397,5]
[364850853,1749275443389,-480.0,0.00027397,5]
[364850854,1749275443399,-428.51499318,0.00027397,5]
[364850855,1749275443409,-480.0,0.00027397,5]
[364850856,1749275443419,-553.1,0.00027397,5]
[364850858,1749275443429,-186.45063177,0.00027397,5]
[364850859,1749275443439,-480.0,0.00027397,5]
[364850860,1749275443450,-323.98550522,0.00027397,5]
[364850862,1749275443459,-480.0,0.00027397,5]
[364850863,1749275443470,-564.70409553,0.00027397,5]
[364850864,1749275443480,-480.0,0.00027397,5]
[364850865,1749275443490,-446.59940288,0.00027397,5]
[364850866,1749275443500,-483.29393376,0.00027397,5]
[364850867,1749275443510,-248.44864722,0.00027397,5]
[364850868,1749275443519,-480.0,0.00027397,5]
[364850869,1749275443530,-480.0,0.00027397,5]
[364850870,1749275443540,-480.0,0.00027397,2]
[364850871,1749275443550,-480.0,0.00027397,5]
[364850872,1749275443560,-480.0,0.00027397,5]
[364850873,1749275443570,-480.0,0.00027397,5]
[364850874,1749275443580,-480.08528522,0.00027397,2]
[364850875,1749275443589,-480.0,0.00027397,5]
[364850876,1749275443599,-476.46498868,0.00027397,5]
[364850877,1749275443609,-480.0,0.00027397,5]
[364850878,1749275443619,-508.19454957,0.00027397,5]
[364850879,1749275443628,-480.0,0.00027397,5]
[364850880,1749275443638,-493.53946727,0.00027397,5]
[364850881,1749275443648,-1873.25,0.00027397,5]
[364850882,1749275443660,-480.0,0.00027397,5]
[364850883,1749275443670,-748.25,0.00027397,5]
[364850884,1749275443680,-480.0,0.00027397,5]
[364850885,1749275443690,-480.0,0.00027397,5]
[364850886,1749275443699,-891.05,0.00027397,5]
[364850887,1749275443708,-807.46,0.00027397,5]
[364850888,1749275443717,-480.0,0.00027397,5]
[364850889,1749275443727,-172.66743277,0.00027397,5]
[364850890,1749275443736,-480.0,0.00027397,5]
[364850891,1749275443748,-164.03713401,0.00027397,5]
[364850892,1749275443760,-480.0,0.00027397,5]
[364850893,1749275443771,-480.0,0.00027397,5]
[364850894,1749275443784,-489.64242432,0.00027397,5]
[364850895,1749275443795,-480.0,0.00027397,5]
[364850896,1749275443804,-480.0,0.00027397,5]
[364850897,1749275443814,-350.28167534,0.00027397,5]
[364850898,1749275443825,-480.0,0.00027397,5]
[364850899,1749275443835,-480.0,0.00027397,5]
[364850900,1749275443846,-511.82,0.00027397,5]
[364850901,1749275443856,-592.7,0.00027397,5]
[364850902,1749275443866,-480.0,0.00027397,5]
[364850903,1749275443876,-488.56,0.00027397,5]
[364850904,1749275443886,-480.0,0.00027397,5]
[364850905,1749275443896,-480.0,0.00027397,5]
[364850906,1749275443907,-480.0,0.00027397,5]
[364850907,1749275443917,-484.13160525,0.00027397,5]
[364850908,1749275443928,-480.0,0.00027397,5]
[364850909,1749275443938,-1115.25,0.00027397,5]
[364850910,1749275443948,-1363.86,0.00027397,5]
[364850911,1749275443959,-504.56,0.00027397,5]
[364850912,1749275443969,-480.0,0.00027397,5]
[364850913,1749275443983,-480.0,0.00027397,5]
[364850914,1749275443999,-480.0,0.00027397,5]
[364850915,1749275444011,-480.0,0.00027397,5]
[364850916,1749275444021,-774.18,0.00027397,5]
[364850917,1749275444031,-480.0,0.00027397,5]
[364850918,1749275444041,-480.0,0.00027397,5]
[364850919,1749275444052,-480.0,0.00027397,5]
[364850920,1749275444061,-480.0,0.00027397,5]
[364850921,1749275444071,-480.0,0.00027397,5]
[364850922,1749275444080,-480.0,0.00027397,5]
[364850923,1749275444090,-478.87960206,0.00027397,5]
[364850924,1749275444099,-480.0,0.00027397,5]
[364850925,1749275444108,-598.1,0.00027397,5]
[364850926,1749275444118,-692.39,0.00027397,5]
[364850927,1749275444128,-480.0,0.00027397,5]
[364850928,1749275444142,-480.0,0.00027397,5]
[364850929,1749275444152,-480.0,0.00027397,5]
[364850930,1749275444162,-484.17604451,0.00027397,5]
[364850931,1749275444172,-585.52,0.00027397,5]
[364850932,1749275444183,-434.5505268,0.00027397,5]
[364850933,1749275444197,-480.0,0.00027397,5]
[364850934,1749275444209,-1003.36,0.00027397,5]
[364850935,1749275444220,-2075.41541554,0.00027397,5]
[364850936,1749275444231,-480.0,0.00027397,5]
[364850937,1749275444240,-480.0,0.00027397,5]
[364850938,1749275444250,-480.0,0.00027397,5]
[364850939,1749275444260,-480.0,0.00027397,5]
[364850940,1749275444270,-480.0,0.00027397,5]
[364850941,1749275444280,-480.0,0.00027397,5]
[364850942,1749275444290,-480.0,0.00027397,5]
[364850943,1749275444300,-480.0,0.00027397,5]
[364850944,1749275444311,-480.26838591,0.00027397,5]
[364850945,1749275444320,-480.0,0.00027397,5]
[364850946,1749275444330,-480.0,0.00027397,5]
[364850947,1749275444339,-528.11,0.00027397,5]
[364850948,1749275444350,-480.0,0.00027397,5]
[364850949,1749275444360,-1090.43,0.00027397,5]
[364850950,1749275444370,-480.0,0.00027397,5]
[364850951,1749275444381,-480.0,0.00027397,5]
[364850952,1749275444391,-480.0,0.00027397,5]
[364850953,1749275444402,-480.0,0.00027397,5]
[364850954,1749275444411,-480.0,0.00027397,5]
[364850955,1749275444422,-480.0,0.00027397,5]
[364850956,1749275444432,-480.0,0.00027397,5]
[364850957,1749275444442,-845.75,0.00027397,5]
[364850958,1749275444452,-345.79212705,0.00027397,5]
[364850959,1749275444462,-480.0,0.00027397,5]
[364850960,1749275444473,-480.0,0.00027397,5]
[364850961,1749275444482,-480.0,0.00027397,5]
[364850962,1749275444493,-480.0,0.00027397,5]
[364850963,1749275444503,-1268.78,0.00027397,5]
[364850964,1749275444513,-480.0,0.00027397,5]
[364850965,1749275444523,-480.0,0.00027397,5]
[364850966,1749275444533,-431.3303936,0.00027397,5]
[364850967,1749275444543,-705.95,0.00027397,5]
[364850968,1749275444553,-300.0,0.00027397,5]
[364850969,1749275444563,-480.0,0.00027397,5]
[364850970,1749275444572,-480.0,0.00027397,5]
[364850971,1749275444582,-487.76254616,0.00027397,5]
[364850972,1749275444591,-496.73570632,0.00027397,5]
[364850973,1749275444601,-480.0,0.00027397,5]
[364850974,1749275444611,-667.85,0.00027397,5]
[364850975,1749275444621,-489.46585648,0.00027397,5]
[364850976,1749275444630,-480.0,0.00027397,5]
[364850977,1749275444640,-525.14,0.00027397,5]
[364850978,1749275444649,-630.65,0.00027397,5]
[364850979,1749275444658,-480.0,0.00027397,5]
[364850980,1749275444668,-556.44,0.00027397,5]
[364850981,1749275444677,-480.0,0.00027397,5]
[364850982,1749275444687,-480.0,0.00027397,5]
[364850983,1749275444696,-865.84,0.00027397,5]
[364850984,1749275444706,-547.71077723,0.00027397,5]
[364850985,1749275444715,-480.0,0.00027397,5]
[364850986,1749275444725,-491.30367506,0.00027397,5]
[364850987,1749275444734,-480.0,0.00027397,5]
[364850988,1749275444745,-480.0,0.00027397,5]
[364850989,1749275444754,-314.10546892,0.00027397,5]
[364850990,1749275444764,-987.96,0.00027397,5]
[364850991,1749275444774,-480.0,0.00027397,5]
[364850992,1749275444783,-683.29,0.00027397,5]
[364850993,1749275444793,-480.0,0.00027397,5]
[364850994,1749275444802,-480.0,0.00027397,5]
[364850995,1749275444811,-503.30597813,0.00027397,5]
[364850996,1749275444821,-480.0,0.00027397,5]
[364850997,1749275444831,-480.0,0.00027397,5]
[364850998,1749275444840,-983.97,0.00027397,5]
[364850999,1749275444850,-480.0,0.00027397,5]
[364851000,1749275444860,-480.97249773,0.00027397,5]
[364851001,1749275444869,-494.43292697,0.00027397,5]
[364851002,1749275444879,-480.0,0.00027397,5]
[364851003,1749275444888,-500.37678524,0.00027397,5]
[364851004,1749275444898,-165.60427988,0.00027397,5]
[364851005,1749275444910,-480.0,0.00027397,5]
[364851006,1749275444919,-480.0,0.00027397,5]
[364851007,1749275444930,-480.0,0.00027397,5]
[364851008,1749275444939,-480.0,0.00027397,5]
[364851009,1749275444949,-480.0,0.00027397,5]
[364851010,1749275444960,-480.0,0.00027397,5]
[364851011,1749275444969,-811.35,0.00027397,5]
[364851012,1749275444979,-480.0,0.00027397,5]
[364851013,1749275444988,-480.0,0.00027397,5]
[364851014,1749275445000,-480.0,0.00027397,5]
[364851015,1749275445011,-480.0,0.00027397,5]
[364851016,1749275445020,-994.12,0.00027397,5]
[364851017,1749275445030,-480.0,0.00027397,5]
[364851018,1749275445039,-549.5,0.00027397,5]
[364851019,1749275445048,-480.0,0.00027397,5]
[364851020,1749275445058,-480.0,0.00027397,5]
[364851021,1749275445068,-480.0,0.00027397,5]
[364851022,1749275445078,-586.32,0.00027397,5]
[364851023,1749275445087,-480.0,0.00027397,5]
[364851024,1749275445096,-480.0,0.00027397,5]
[364851025,1749275445106,-480.0,0.00027397,5]
[364851026,1749275445115,-1161.87,0.00027397,5]
[364851027,1749275445127,-480.0,0.00027397,5]
[364851028,1749275445137,-480.0,0.00027397,5]
[364851029,1749275445151,-480.0,0.00027397,5]
[364851030,1749275445160,-490.86418564,0.00027397,5]
[364851031,1749275445170,-546.31471662,0.00027397,5]
[364851032,1749275445180,-480.0,0.00027397,5]
[364851033,1749275445191,-480.0,0.00027397,5]
[364851034,1749275445200,-480.0,0.00027397,5]
[364851035,1749275445209,-480.0,0.00027397,5]
[364851036,1749275445219,-480.0,0.00027397,5]
[364851037,1749275445228,-480.0,0.00027397,5]
[364851038,1749275445238,-480.0,0.00027397,5]
[364851039,1749275445249,-466.56905724,0.00027397,5]
[364851040,1749275445258,-486.19511733,0.00027397,5]
[364851041,1749275445268,-531.17,0.00027397,5]
[364851042,1749275445278,-480.0,0.00027397,5]
[364851043,1749275445287,-480.0,0.00027397,5]
[364851044,1749275445298,-488.00690606,0.00027397,5]
[364851045,1749275445309,-1154.57,0.00027397,5]
[364851046,1749275445318,-495.84295046,0.00027397,5]
[364851047,1749275445327,-480.0,0.00027397,5]
[364851048,1749275445337,-624.96,0.00027397,5]
[364851049,1749275445347,-480.14116459,0.00027397,5]
[364851050,1749275445357,-357.43525227,0.00027397,5]